[Event "Chinese League Division-A 2024"]
[Site "Fuling Chongqing"]
[Date "2024.07.03"]
[Round "7.18"]
[White "Wang, Chen"]
[Black "Cao, Qingfeng"]
[Result "1/2-1/2"]
[ECO "A45"]
[WhiteElo "2490"]
[BlackElo "2189"]
[Annotator "TA"]
[PlyCount "97"]
[EventDate "2024.06.28"]
[EventType "team-tourn"]
[EventCountry "CHN"]
[SourceTitle "playchess.com"]
[Source "ChessBase"]
[SourceQuality "1"]
[TimeControl "40/5400+30:1800+30"]

{[%evp 11,97,4,0,10,12,6,3,7,10,2,12,2,15,8,10,15,16,6,26,29,37,34,45,36,50,24,64,52,66,32,78,78,79,79,79,85,91,68,68,68,68,68,68,68,68,68,79,68,70,74,79,68,79,79,79,79,79,68,68,68,68,68,68,68,68,68,79,79,79,76,68,68,68,68,68,37,37,37,37,37,37,8,8,8,8,8,8,8]} 1. d4 {[%emt 0:00:21]} Nf6 {[%emt 0:00:20]} 2. Bg5 {[%emt 0:01:00]} g6 {[%emt 0:02:26]} 3. Bxf6 {[%emt 0:00:29]} exf6 {[%emt 0:00:06]} 4. e3 {[%emt 0:02:29]} Bg7 {[%emt 0:02:25]} 5. g3 {[%emt 0:01:49]} O-O {[%emt 0:01:48]} 6. Bg2 {[%emt 0:01:41]} d5 {[%emt 0:00:44]} 7. Ne2 {[%emt 0:01:09]} c6 {[%emt 0:02:24]} 8. O-O {[%emt 0:03:12]} Re8 {[%emt 0:01:47]} 9. Nd2 {[%emt 0:08:43]} Nd7 {[%emt 0:13:36]} 10. c4 {[%emt 0:03:06]} dxc4 {[%emt 0:00:35]} 11. Nxc4 {[%emt 0:00:09]} Nb6 {[%emt 0:01:06]} 12. Rc1 {[%emt 0:05:58]} Nxc4 {[%emt 0:06:58]} 13. Rxc4 {[%emt 0:00:15]} Bg4 {[%emt 0:00:57]} 14. h3 {[%emt 0:03:41]} Bxe2 {[%emt 0:00:16]} 15. Qxe2 {[%emt 0:00:07]} f5 {[%emt 0:03:15]} 16. b4 {[%emt 0:01:29]} a6 {[%emt 0:05:19]} 17. a4 {[%emt 0:02:31]} Re7 {[%emt 0:03:56]} 18. Rb1 {[%emt 0:01:29]} Bf8 {[%emt 0:03:55]} 19. h4 {[%emt 0:00:52]} h5 {[%emt 0:00:25]} 20. b5 {[%emt 0:01:00]} axb5 {[%emt 0:02:30]} (20... Qb6 $14) 21. axb5 $16 {[%emt 0:00:09]} cxb5 {[%emt 0:00:10]} 22. Rxb5 {[%emt 0:00:08]} Ra1+ {[%emt 0:01:01]} 23. Kh2 {[%emt 0:00:06]} Ra5 {[%emt 0:00:40]} 24. Rxa5 {[%emt 0:03:44]} Qxa5 {[%emt 0:00:07]} 25. Qb2 {[%emt 0:00:58]} Rc7 {[%emt 0:04:05]} 26. Rxc7 {[%emt 0:02:48]} Qxc7 {[%emt 0:00:07]} 27. Bxb7 $14 {[%emt 0:00:47][%mdl 4096] Endgame. KQB-KQB} Bd6 {[%emt 0:00:40]} 28. Kg2 {[%emt 0:01:29]} Kg7 {[%emt 0:00:49]} 29. Bf3 {[%emt 0:00:15]} Qb8 {[%emt 0:00:52]} 30. Qa2 {[%emt 0:00:21]} (30. Qxb8 {simplifies} Bxb8 31. Bd5 Bc7 32. Kf3) 30... Qc7 {[%emt 0:02:06]} 31. Qd5 {[%emt 0:00:55]} Kf6 {[%emt 0:00:22]} 32. Be2 {[%emt 0:01:12]} Bf8 {[%emt 0:01:05]} 33. Bb5 {[%emt 0:01:09]} Kg7 {[%emt 0:01:14]} 34. Bd7 {[%emt 0:03:00]} Qd6 {[%emt 0:01:04]} 35. Qb7 {[%emt 0:00:56]} (35. Qxd6 {simplifies} Bxd6 36. Be8 Kf6 37. Bb5) 35... Qe7 {[%emt 0:00:40]} 36. Kg1 {[%emt 0:01:23] White is more active.} Qb4 {[%emt 0:01:52]} 37. Qd5 {[%emt 0:00:53]} (37. Qxb4 {simplifies} Bxb4 38. Bc6 Be7 39. Be8) 37... Qd6 {[%emt 0:00:19]} 38. Qb5 {[%emt 0:02:00]} (38. Qxd6 {simplifies} Bxd6 39. Bb5 Kf6 40. Kg2) 38... Kf6 {[%emt 0:06:55]} 39. Bc6 {[%emt 0:01:03]} Kg7 {[%emt 0:00:50]} 40. Qc4 {[%emt 0:00:00]} Qb4 {[%emt 0:00:00]} 41. Qxb4 {[%emt 0:00:33]} Bxb4 {[%emt 0:00:46] KB-KB} 42. Kg2 {[%emt 0:00:07]} Kf6 {[%emt 0:00:10]} 43. f3 {[%emt 0:00:07]} Be1 {[%emt 0:00:23]} 44. Ba4 {[%emt 0:00:11]} Ke7 {[%emt 0:00:26]} 45. Bb3 {[%emt 0:00:14]} Kf6 {[%emt 0:00:16]} 46. e4 {[%emt 0:00:32]} fxe4 {[%emt 0:00:08] The position is equal.} 47. fxe4 {[%emt 0:00:04]} Bc3 {[%emt 0:00:12]} 48. d5 {[%emt 0:00:13]} Be5 {[%emt 0:00:10]} 49. Kf3 {[%emt 0:00:31] Weighted Error Value: White=0.05 (flawless) /Black=0.05 (flawless) .  Mistake:       	---       	Black=1      Inaccurate:     	White=4     	Black=1      OK:         	White=13    	Black=16     Best:        	White=1     	Black=1} 1/2-1/2

[Event "Chinese League Division-A 2024"]
[Site "Fuling Chongqing"]
[Date "2024.07.03"]
[Round "7.19"]
[White "Sun, Fanghui"]
[Black "Huang, Qian"]
[Result "1-0"]
[ECO "B08"]
[WhiteElo "2115"]
[BlackElo "2396"]
[Annotator "TA"]
[PlyCount "56"]
[EventDate "2024.06.28"]
[EventType "team-tourn"]
[EventCountry "CHN"]
[SourceTitle "playchess.com"]
[Source "ChessBase"]
[SourceQuality "1"]
[TimeControl "40/5400+30:1800+30"]

{[%evp 12,56,38,0,10,0,0,0,0,0,54,38,68,43,43,-88,-31,-28,-18,-57,-9,-7,-11,-32,-41,-25,-46,-16,22,20,21,21,145,124,224,217,237,238,216,193,204,199,204,196,201,191,169]} 1. e4 {[%emt 0:00:03]} g6 {[%emt 0:07:18]} 2. d4 {[%emt 0:00:48]} Bg7 {[%emt 0:00:07]} 3. Nc3 {[%emt 0:01:18]} d6 {[%emt 0:02:26]} 4. Nf3 {[%emt 0:02:15]} Nf6 {[%emt 0:02:57]} 5. h3 {[%emt 0:02:28]} O-O {[%emt 0:06:59]} 6. Be2 {[%emt 0:05:58]} a6 {[%emt 0:05:25]} 7. O-O {[%emt 0:07:41]} b5 {[%emt 0:08:29]} 8. e5 {[%emt 0:02:09]} Nfd7 {[%emt 0:01:59]} 9. Bf4 $1 {[%emt 0:07:11]} Bb7 {[%emt 0:00:44] The position is equal.} 10. Qd2 {[%emt 0:03:33]} c5 {[%emt 0:23:40]} ({Black should try} 10... Nc6 $11) 11. exd6 $14 {[%emt 0:12:07]} cxd4 {[%emt 0:01:46]} 12. dxe7 {[%emt 0:14:07] White has more active pieces. The black rooks are passive.} Qxe7 {[%emt 0:00:07]} 13. Nd1 {[%emt 0:00:03]} (13. Nxd4 $14 {was forced to keep a grip.} b4 14. Nd1) 13... Nc6 {[%emt 0:13:28]} (13... Re8 $17 14. Nxd4 Bxd4 15. Qxd4 Qxe2) 14. Re1 $15 {[%emt 0:05:26][%cal Oe2b5]} Qd8 {[%emt 0:04:59]} 15. c3 {[%emt 0:02:55][%cal Rc3d4]} Nb6 {[%emt 0:05:34]} (15... Nc5 $15) 16. Rc1 {[%emt 0:04:01]} Rc8 {[%emt 0:05:14]} 17. Bh6 {[%emt 0:06:20]} dxc3 {[%emt 0:03:42]} 18. Nxc3 {[%emt 0:00:07]} Qxd2 {[%emt 0:01:01]} 19. Bxd2 {[%emt 0:00:04]} b4 {[%emt 0:00:57]} 20. Ne4 {[%emt 0:01:24] [#] Black must now prevent Nd6.} Nd4 {[%emt 0:01:52]} ({But not} 20... Bxb2 $6 21. Rb1 Bh8 22. Nd6 $18 (22. Bxb4 Nxb4 23. Rxb4 a5 $11)) 21. Nxd4 {[%emt 0:02:46]} Bxe4 {[%emt 0:01:33]} (21... Rxc1 $11 {keeps the balance.} 22. Bxc1 (22. Rxc1 Bxe4 23. Bxb4 Bxd4 $14) 22... Bxe4 (22... Bxd4 23. Rd1 $16) 23. Bxa6 Bd5) 22. Rxc8 $16 {[%emt 0:01:51]} (22. Bxa6 Rxc1 23. Bxc1 Bd5 $15) 22... Nxc8 {[%emt 0:00:12]} (22... Rxc8 $16 {is a better defense.} 23. Bxa6 Rd8) 23. Bxa6 $18 {[%emt 0:01:32] White is clearly better.} Bxd4 {[%emt 0:00:58]} 24. Rxe4 {[%emt 0:00:06]} Bxb2 {[%emt 0:00:04]} 25. Rxb4 {[%emt 0:03:21]} Be5 {[%emt 0:00:10]} 26. Re4 {[%emt 0:02:09]} f6 {[%emt 0:00:59]} 27. Bb4 {[%emt 0:04:10]} Rd8 {[%emt 0:00:15]} 28. f4 {[%emt 0:00:07]} Bd4+ {[%emt 0:01:35] Weighted Error Value: White=0.16 (very precise) /Black=0.28 (precise) .  Mistake:       	White=1     	Black=5      Inaccurate:     	White=1     	Black=2      OK:         	White=7     	Black=11     Best:        	White=4     	---        Strong:       	White=1     	---} 1-0

[Event "Chinese League Division-A 2024"]
[Site "Fuling Chongqing"]
[Date "2024.07.03"]
[Round "7.20"]
[White "Wang, Chuqiao"]
[Black "Zhang, Lanlin"]
[Result "1/2-1/2"]
[ECO "D35"]
[WhiteElo "2278"]
[BlackElo "2161"]
[Annotator "RC"]
[PlyCount "68"]
[EventDate "2024.06.28"]
[EventType "team-tourn"]
[EventCountry "CHN"]
[SourceTitle "playchess.com"]
[Source "ChessBase"]
[SourceQuality "1"]
[TimeControl "40/5400+30:1800+30"]

1. d4 {[%emt 0:00:06]} Nf6 {[%emt 0:02:14]} 2. c4 {[%emt 0:00:44]} e6 {[%emt 0:00:56]} 3. Nf3 {[%emt 0:01:11]} d5 {[%emt 0:03:23]} 4. Nc3 {[%emt 0:04:43]} Be7 {[%emt 0:03:43]} 5. cxd5 {[%emt 0:04:40]} exd5 {[%emt 0:00:08]} 6. Bg5 {[%emt 0:00:35]} O-O {[%emt 0:04:21]} 7. e3 {[%emt 0:01:20]} h6 {[%emt 0:05:05]} 8. Bh4 {[%emt 0:05:20]} c6 {[%emt 0:04:38]} 9. Bd3 {[%emt 0:03:09]} Ne4 {[%emt 0:05:34]} 10. Bxe7 {[%emt 0:04:30]} Qxe7 {[%emt 0:00:06]} 11. O-O {[%emt 0:01:48]} Bf5 {[%emt 0:00:57]} 12. Qb3 {[%emt 0:10:16]} Nd6 {[%emt 0:05:59]} 13. Bxf5 {[%emt 0:01:35]} Nxf5 {[%emt 0:00:05]} 14. e4 {[%emt 0:06:22]} dxe4 {[%emt 0:01:11]} 15. Nxe4 {[%emt 0:00:08]} Qxe4 {[%emt 0:00:07]} 16. Qxb7 {[%emt 0:00:15]} Na6 {[%emt 0:01:34]} 17. Qxa6 {[%emt 0:00:15]} Nxd4 {[%emt 0:00:48]} 18. Nxd4 {[%emt 0:00:24]} Qxd4 {[%emt 0:00:08]} 19. Qxc6 {[%emt 0:01:33]} Qxb2 {[%emt 0:00:13]} 20. g3 {[%emt 0:00:28]} a5 {[%emt 0:00:21]} 21. Qa4 {[%emt 0:00:36]} Rfe8 {[%emt 0:00:36]} 22. Rfe1 {[%emt 0:01:13]} Rxe1+ {[%emt 0:00:10]} 23. Rxe1 {[%emt 0:00:07]} Qb4 {[%emt 0:00:06]} 24. Qxb4 {[%emt 0:01:00]} axb4 {[%emt 0:00:05]} 25. Rb1 {[%emt 0:00:21]} Rxa2 {[%emt 0:00:06]} 26. Rxb4 {[%emt 0:00:06]} g5 {[%emt 0:00:04]} 27. h4 {[%emt 0:00:23]} Kg7 {[%emt 0:00:05]} 28. hxg5 {[%emt 0:00:12]} hxg5 {[%emt 0:00:04]} 29. g4 {[%emt 0:00:14]} Ra1+ {[%emt 0:00:06]} 30. Kg2 {[%emt 0:00:06]} Ra3 {[%emt 0:00:04]} 31. Rb6 {[%emt 0:00:08]} Ra4 {[%emt 0:00:05]} 32. Kg3 {[%emt 0:00:06]} Ra3+ {[%emt 0:00:03]} 33. Kg2 {[%emt 0:00:07]} Ra4 {[%emt 0:00:03]} 34. Kg3 {[%emt 0:00:06]} Ra3+ {[%emt 0:00:02]} 1/2-1/2

[Event "Chinese League Division-A 2024"]
[Site "Fuling Chongqing"]
[Date "2024.07.03"]
[Round "7.21"]
[White "Bai, Jinshi"]
[Black "Wang, Yue"]
[Result "1/2-1/2"]
[ECO "A30"]
[WhiteElo "2564"]
[BlackElo "2652"]
[Annotator "TA"]
[PlyCount "61"]
[EventDate "2024.06.28"]
[EventType "team-tourn"]
[EventCountry "CHN"]
[SourceTitle "playchess.com"]
[Source "ChessBase"]
[SourceQuality "1"]
[TimeControl "40/5400+30:1800+30"]

{[%evp 21,61,0,0,0,0,0,0,0,0,0,0,0,0,0,0,0,0,0,0,0,0,0,0,0,0,0,13,0,0,0,0,0,0,0,7,0,0,0,0,0,0,0]} 1. Nf3 {[%emt 0:00:03]} Nf6 {[%emt 0:01:37]} 2. c4 {[%emt 0:01:14]} c5 {[%emt 0:00:51]} 3. g3 {[%emt 0:03:24]} d5 {[%emt 0:04:52]} 4. cxd5 {[%emt 0:00:45]} Nxd5 {[%emt 0:00:21]} 5. Bg2 {[%emt 0:03:45]} Nc6 {[%emt 0:02:41]} 6. d4 {[%emt 0:02:52]} cxd4 {[%emt 0:03:35]} 7. Nxd4 {[%emt 0:00:16]} Ndb4 {[%emt 0:00:28]} 8. Nxc6 {[%emt 0:05:21]} Qxd1+ {[%emt 0:00:40]} 9. Kxd1 {[%emt 0:00:04]} Nxc6 {[%emt 0:00:06]} 10. Bxc6+ {[%emt 0:04:32]} bxc6 {[%emt 0:00:09]} 11. Nc3 {[%emt 0:00:08]} e5 {[%emt 0:02:03] The position is equal.} 12. Be3 {[%emt 0:02:54]} Be6 {[%emt 0:00:18]} 13. f3 {[%emt 0:04:20]} Be7 {[%emt 0:00:49]} 14. Rc1 {[%emt 0:02:32][%cal Ba1c1,Bc1c2,Bc2c5][%mdl 32]} O-O {[%emt 0:01:21]} 15. b3 {[%emt 0:02:42]} Ba3 {[%emt 0:01:52]} 16. Rc2 {[%emt 0:00:23]} Bf5 {[%emt 0:00:15] Hoping for ...Rad8+.} 17. Ne4 {[%emt 0:00:14][%cal Oe3c5]} a5 {[%emt 0:00:51]} 18. Bc5 {[%emt 0:06:20]} Rfd8+ {[%emt 0:01:59]} (18... Bxe4 19. fxe4 Rfd8+ 20. Ke1) 19. Ke1 {[%emt 0:00:55]} Bxe4 {[%emt 0:00:38]} 20. fxe4 {[%emt 0:00:07]} Bxc5 {[%emt 0:00:13]} 21. Rxc5 $11 {[%emt 0:00:07][%mdl 4096] Endgame. KRR-KRR} a4 {[%emt 0:00:22] [#] White must now prevent ...axb3.} 22. Kf2 {[%emt 0:01:30]} axb3 {[%emt 0:00:42]} 23. axb3 {[%emt 0:00:05]} Rab8 {[%emt 0:00:06]} 24. Rxe5 {[%emt 0:01:51]} Rxb3 {[%emt 0:00:28]} 25. Rc1 {[%emt 0:01:03]} Rb5 {[%emt 0:00:28]} 26. Re7 {[%emt 0:01:45]} Kf8 {[%emt 0:00:12]} 27. Rc7 {[%emt 0:00:30][%cal Oc1a1]} Re5 {[%emt 0:00:43]} 28. Kf3 {[%emt 0:00:32]} Rd4 {[%emt 0:00:17]} 29. Rc8+ {[%emt 0:01:02]} Ke7 {[%emt 0:00:07]} 30. Rc7+ {[%emt 0:00:11]} Kf8 {[%emt 0:00:10]} 31. Rc8+ {[%emt 0:00:59] An uneventful encounter.   Weighted Error Value: White=0.01 (flawless) /Black=0.01 (flawless) .  OK:         	White=4     	Black=12     Best:        	White=2     	---} 1/2-1/2

[Event "Chinese League Division-A 2024"]
[Site "Fuling Chongqing"]
[Date "2024.07.03"]
[Round "7.22"]
[White "Dai, Changren"]
[Black "Kong, Xiangrui"]
[Result "1/2-1/2"]
[ECO "A11"]
[WhiteElo "2502"]
[BlackElo "2439"]
[Annotator "TA"]
[PlyCount "138"]
[EventDate "2024.06.28"]
[EventType "team-tourn"]
[EventCountry "CHN"]
[SourceTitle "playchess.com"]
[Source "ChessBase"]
[SourceQuality "1"]
[TimeControl "40/5400+30:1800+30"]

{[%evp 43,138,38,49,29,36,0,10,8,12,-8,0,0,4,-8,0,-25,-16,-12,-19,-79,-77,-76,-70,-62,-48,-89,-89,-91,-59,-62,-62,-57,0,-51,-36,-80,-79,-74,-79,-118,-88,-127,-92,-177,-172,-178,-160,-166,-164,-166,-96,-100,-93,-102,-100,-93,-99,-104,-96,-103,-95,-95,-99,-103,-101,-100,-41,-34,-34,-64,-55,-66,-32,-32,-32,-36,-36,-83,0,-30,0,-11,0,-32,-8,-8,-8,-8,0,0,0,-8,0,-6,0,0,0]} 1. Nf3 {[%emt 0:00:02]} Nf6 {[%emt 0:01:07]} 2. e3 {[%emt 0:00:17]} d5 {[%emt 0:02:28]} 3. c4 {[%emt 0:00:03]} c6 {[%emt 0:00:12]} 4. Qc2 {[%emt 0:00:04]} e6 {[%emt 0:01:56]} 5. b3 {[%emt 0:01:00]} Nbd7 {[%emt 0:01:59]} 6. Bb2 {[%emt 0:00:07] A11: English Opening: 1...c6.} b6 {[%emt 0:00:03]} 7. d4 {[%emt 0:01:26]} Bb7 {[%emt 0:00:15]} 8. Bd3 {[%emt 0:04:22]} Bb4+ {[%emt 0:10:50]} 9. Nbd2 {[%emt 0:01:55]} Rc8 {[%emt 0:16:59]} 10. O-O {[%emt 0:00:26]} c5 $146 {[%emt 0:01:09]} ({Predecessor:} 10... O-O 11. e4 dxe4 12. Nxe4 Be7 13. Nfg5 h6 14. Nf3 c5 15. dxc5 Nxc5 16. Nxf6+ Bxf6 {0-1 Janouchova,M (1250)-Rihova,K (1556) CZE-ch U16 Girls 2007 (7)}) 11. a3 {[%emt 0:03:00]} Bxd2 {[%emt 0:00:37]} 12. Qxd2 {[%emt 0:05:46]} O-O {[%emt 0:07:12]} 13. Qe2 {[%emt 0:07:24]} cxd4 {[%emt 0:01:48]} 14. exd4 {[%emt 0:00:52]} Qc7 {[%emt 0:07:20]} 15. Rfe1 {[%emt 0:06:39]} Rfd8 {[%emt 0:03:33]} 16. h3 {[%emt 0:01:47]} Qb8 {[%emt 0:04:24]} 17. Qe3 {[%emt 0:07:05]} dxc4 {[%emt 0:08:45]} 18. bxc4 {[%emt 0:00:03]} Qa8 {[%emt 0:04:12]} 19. Nh4 {[%emt 0:01:46]} Re8 {[%emt 0:01:13]} 20. Rac1 {[%emt 0:05:07]} Qb8 {[%emt 0:01:18]} 21. Bf1 {[%emt 0:06:44]} Nf8 {[%emt 0:02:35]} 22. a4 {[%emt 0:00:39]} Ng6 {[%emt 0:00:58]} 23. Nxg6 {[%emt 0:01:29]} hxg6 {[%emt 0:01:11]} 24. a5 {[%emt 0:03:57]} bxa5 {[%emt 0:02:33]} 25. Ba3 {[%emt 0:09:42]} Qc7 {[%emt 0:01:42]} 26. Bc5 {[%emt 0:08:44]} Bc6 {[%emt 0:02:08]} 27. f3 {[%emt 0:04:26]} a4 {[%emt 0:00:33]} 28. Rb1 {[%emt 0:00:31]} Rb8 {[%emt 0:01:14]} 29. Qa3 {[%emt 0:00:18]} Red8 {[%emt 0:01:07]} 30. Rxb8 {[%emt 0:05:18]} Qxb8 {[%emt 0:00:01]} 31. Re2 {[%emt 0:01:59]} (31. Qe3 $11) 31... Nh5 $17 {[%emt 0:02:19]} 32. Qe3 {[%emt 0:03:40]} Ng3 {[%emt 0:00:59]} 33. Re1 {[%emt 0:00:39]} Nf5 {[%emt 0:04:49]} 34. Qf2 {[%emt 0:00:02]} Qf4 {[%emt 0:01:01]} 35. Rd1 {[%emt 0:00:07]} a6 {[%emt 0:01:55]} 36. Qd2 {[%emt 0:00:28]} Qg3 {[%emt 0:00:57]} 37. Qf2 {[%emt 0:00:22]} Qf4 {[%emt 0:00:37]} 38. Qd2 $1 {[%emt 0:00:02]} Qb8 {[%emt 0:00:33]} 39. Qa2 {[%emt 0:01:23]} Qb3 {[%emt 0:03:03]} 40. Qxb3 {[%emt 0:00:00]} axb3 {[%emt 0:00:00]} 41. Rb1 {[%emt 0:03:57]} Ba4 {[%emt 0:13:10]} ({Reject} 41... Nxd4 42. Bxd4 Rxd4 43. Rxb3 $15) 42. Bb6 {[%emt 0:04:29]} Rd7 {[%emt 0:00:32]} 43. Ra1 {[%emt 0:03:36]} (43. d5 $17 {was called for.}) 43... Rb7 $1 $19 {[%emt 0:04:16]} 44. c5 {[%emt 0:01:12] [#]} Bb5 $1 {[%emt 0:00:19]} 45. Bxb5 {[%emt 0:09:54]} axb5 {[%emt 0:00:01]} 46. Rd1 {[%emt 0:00:43]} Kf8 {[%emt 0:11:01]} (46... Ne7 $19 47. Rb1 Nc6 (47... Nd5 48. Rxb3 b4 49. Kf2 $11) 48. Rxb3 b4 (48... Nxd4 $2 49. Rb1 $17)) 47. d5 $17 {[%emt 0:02:14]} exd5 {[%emt 0:00:43]} 48. Rd3 {[%emt 0:00:12]} b2 {[%emt 0:02:30]} (48... Nd6 {simplifies} 49. Rxb3 Nc4 50. Rxb5 Ke8) 49. Rb3 {[%emt 0:00:05]} Ne3 {[%emt 0:01:13]} 50. Rxb2 {[%emt 0:02:37]} Nc4 {[%emt 0:00:04]} 51. Rxb5 {[%emt 0:00:11] [#]} Ke8 $1 {[%emt 0:00:19]} 52. Kf2 {[%emt 0:02:21]} Kd7 {[%emt 0:00:01]} 53. h4 {[%emt 0:01:27]} Kc6 {[%emt 0:00:01]} 54. Rb4 {[%emt 0:00:19]} Nxb6 {[%emt 0:01:15]} (54... Rd7 $17) 55. cxb6 $15 {[%emt 0:00:02]} Rxb6 {[%emt 0:00:09]} 56. Rf4 {[%emt 0:00:27]} Rb7 {[%emt 0:00:35]} 57. Ke3 {[%emt 0:03:58]} Kc5 {[%emt 0:00:08]} 58. Ra4 {[%emt 0:00:18]} Rb3+ {[%emt 0:01:19]} 59. Ke2 {[%emt 0:00:35]} Rb2+ {[%emt 0:00:52]} 60. Ke3 {[%emt 0:00:02]} Rb3+ {[%emt 0:03:08]} (60... Rxg2 $17 {And now ...Rb2 would win.} 61. Ra7 d4+ 62. Kd3 f5) 61. Ke2 $11 {[%emt 0:00:01]} Rb7 {[%emt 0:00:39]} 62. Ke3 {[%emt 0:00:34]} Rd7 {[%emt 0:00:29]} 63. g4 {[%emt 0:00:38]} Rb7 {[%emt 0:00:45]} 64. Ra5+ {[%emt 0:00:55]} Kc4 {[%emt 0:00:06]} 65. Ra4+ {[%emt 0:00:06]} Kc3 {[%emt 0:00:08]} 66. Ra3+ {[%emt 0:00:08]} Kc4 {[%emt 0:00:56]} 67. Ra4+ {[%emt 0:00:02]} Kc5 {[%emt 0:00:31]} (67... Kc3 $5 68. Ra3+ $8 Kc4 $11) 68. Ra5+ {[%emt 0:00:05]} Kd6 {[%emt 0:00:36]} 69. Ra6+ {[%emt 0:00:11]} Kc5 {[%emt 0:00:13]} 1/2-1/2

[Event "Chinese League Division-A 2024"]
[Site "Fuling Chongqing"]
[Date "2024.07.03"]
[Round "7.23"]
[White "Ma, Qun"]
[Black "Chu, Wei Chao"]
[Result "1/2-1/2"]
[ECO "B01"]
[WhiteElo "2643"]
[BlackElo "2412"]
[Annotator "TA"]
[PlyCount "71"]
[EventDate "2024.06.28"]
[EventType "team-tourn"]
[EventCountry "CHN"]
[SourceTitle "playchess.com"]
[Source "ChessBase"]
[SourceQuality "1"]
[TimeControl "40/5400+30:1800+30"]

{[%evp 15,71,49,48,-14,-16,-27,-49,-43,-28,-35,-25,-43,-18,-9,-21,-18,-14,-16,-17,-25,-22,-14,-8,-21,-22,-13,0,-24,-33,-25,0,-35,0,-23,0,-26,-7,-12,-14,-12,-14,-19,-13,-17,0,-74,-50,-55,-54,-52,-20,-25,0,0,0,-33,0,0]} 1. e4 {[%emt 0:00:10]} d5 {[%emt 0:00:13]} 2. exd5 {[%emt 0:00:23]} Qxd5 {[%emt 0:00:07]} 3. Nc3 {[%emt 0:00:09]} Qa5 {[%emt 0:00:33]} 4. d4 {[%emt 0:00:16]} Nf6 {[%emt 0:00:21]} 5. Nf3 {[%emt 0:00:41]} Bf5 {[%emt 0:02:39]} 6. Ne5 {[%emt 0:04:40]} c6 {[%emt 0:02:17]} 7. Bc4 {[%emt 0:00:13]} e6 {[%emt 0:00:08]} 8. g4 {[%emt 0:05:41]} Bg6 {[%emt 0:01:51]} 9. f4 {[%emt 0:21:20]} ({White should try} 9. h4 $14) 9... Nbd7 $11 {[%emt 0:05:49] aiming for ...Nxe5.} 10. Nxd7 {[%emt 0:03:48]} Kxd7 {[%emt 0:05:14]} 11. Bd2 {[%emt 0:06:01][%cal Od4d5,Bc1d2,Bd2c3,Bc3e1,Be1h4][%mdl 32] Black is slightly better.} Bb4 {[%emt 0:12:48]} 12. O-O {[%emt 0:00:06]} Rae8 {[%emt 0:05:15]} 13. a3 {[%emt 0:01:48]} Bxc3 {[%emt 0:00:06]} (13... Bd6 {feels hotter.} 14. Ne4 Qb6 15. Nc5+ Kc8) 14. Bxc3 {[%emt 0:00:04]} Qc7 {[%emt 0:00:28]} 15. Be1 {[%emt 0:03:34]} Kc8 {[%emt 0:03:22]} 16. c3 {[%emt 0:03:59]} Qd7 {[%emt 0:03:20]} 17. Bh4 {[%emt 0:05:36]} Ne4 {[%emt 0:05:56]} 18. Qe2 {[%emt 0:09:03]} Nd6 {[%emt 0:07:48]} (18... h5 $5 19. g5 $8 Nd6 $11) 19. Ba2 {[%emt 0:00:07]} h5 {[%emt 0:00:13] [#] ...hxg4 would now be deadly.} 20. g5 {[%emt 0:00:08]} Kb8 {[%emt 0:00:15]} 21. Rae1 {[%emt 0:02:49]} Nf5 {[%emt 0:02:45]} 22. Qf2 {[%emt 0:00:15]} Nd6 {[%emt 0:00:05]} 23. Qe2 {[%emt 0:00:58] Against Bd3} Nf5 {[%emt 0:00:05]} 24. Qf2 {[%emt 0:00:01]} Nd6 {[%emt 0:00:10][%cal Bf5d6,Bd6c8,Bc8e7,Be7g6][%mdl 32]} 25. Qf3 {[%emt 0:00:12] Prevents Bd3.} Bf5 {[%emt 0:01:29]} 26. h3 {[%emt 0:02:01]} Nc8 {[%emt 0:01:25]} 27. Kh2 {[%emt 0:02:41]} Ne7 {[%emt 0:02:07]} 28. Bc4 {[%emt 0:02:41]} Qc7 {[%emt 0:06:25]} 29. b4 {[%emt 0:01:01]} Ng6 {[%emt 0:00:00]} 30. Qf2 {[%emt 0:00:28]} (30. Bf2 $1 $11 {remains equal.}) 30... Rc8 {[%emt 0:01:59]} 31. Re3 {[%emt 0:00:48]} Qd6 {[%emt 0:00:27]} 32. Kg1 {[%emt 0:02:42]} Ka8 {[%emt 0:01:00]} (32... a5 $5) 33. Rf3 {[%emt 0:01:38]} Be4 {[%emt 0:01:30]} 34. Re3 {[%emt 0:00:05]} Bf5 {[%emt 0:00:06]} 35. Rf3 {[%emt 0:01:56]} Be4 {[%emt 0:00:21]} 36. Re3 {[%emt 0:00:14] Weighted Error Value: White=0.10 (very precise) /Black=0.11 (very precise) .  Mistake:       	White=1     	---        Inaccurate:     	White=1     	Black=2      OK:         	White=14    	Black=10     Best:        	White=2     	---} 1/2-1/2